fUSD/lending_fUSD_20250118
["ID","MTS","AMOUNT","RATE_DAILY","PERIOD"]
[349461525,1737193850300,-500.0,0.00019899,2]
[349461526,1737193850310,-500.0,0.00019899,2]
[349461527,1737193850319,-500.0,0.00019899,2]
[349461528,1737193850329,-244.39960884,0.00019899,2]
[349461529,1737193850338,-1387.18,0.00019899,2]
[349461530,1737193850347,-1387.18,0.00019899,2]
[349461531,1737193850356,-1387.18,0.00019899,2]
[349461532,1737193850365,-1387.18,0.00019899,2]
[349461533,1737193850374,-1387.18,0.00019899,2]
[349461534,1737193850383,-1387.18,0.00019899,2]
[349461535,1737193850393,-1387.18,0.00019899,2]
[349461536,1737193850402,-1387.18,0.00019899,2]
[349461537,1737193850411,-1387.18,0.00019899,2]
[349461538,1737193850421,-1387.18,0.00019899,2]
[349461539,1737193850430,-1387.18,0.00019899,2]
[349461540,1737193850439,-1387.18,0.00019899,2]
[349461541,1737193850449,-1387.18,0.00019899,2]
[349461542,1737193850459,-1387.18,0.00019899,2]
[349461543,1737193850468,-1387.27729663,0.00019899,2]
[349461544,1737193850478,-914.32,0.00019899,2]
[349461545,1737193850487,-914.32,0.00019899,2]
[349461546,1737193850497,-500.0,0.00019899,2]
[349461547,1737193850506,-914.32,0.00019899,2]
[349461548,1737193850515,-914.32,0.00019899,2]
[349461549,1737193850525,-914.32,0.00019899,2]
[349461550,1737193850534,-914.32,0.00019899,2]
[349461551,1737193850543,-914.32,0.00019899,2]
[349461552,1737193850552,-914.32,0.00019899,2]
[349461553,1737193850562,-914.32,0.00019899,2]
[349461554,1737193850574,-914.32,0.00019899,2]
[349461555,1737193850583,-914.32,0.00019899,2]
[349461556,1737193850593,-914.32,0.00019899,2]
[349461557,1737193850603,-914.32,0.00019899,2]
[349461558,1737193850612,-914.32,0.00019899,2]
[349461559,1737193850622,-914.32,0.00019899,2]
[349461560,1737193850631,-914.32,0.00019899,2]
[349461561,1737193850641,-914.32,0.00019899,2]
[349461562,1737193850650,-914.48846533,0.00019899,2]
[349461563,1737193850660,-500.0,0.00019899,2]
[349461564,1737193850669,-500.0,0.00019899,2]
[349461565,1737193850679,-500.0,0.00019899,2]
[349461566,1737193850689,-500.0,0.00019899,2]
[349461567,1737193850698,-500.0,0.00019899,2]
[349461568,1737193850749,-500.0,0.00019899,2]
[349461569,1737193850759,-500.0,0.00019899,2]
[349461570,1737193850768,-500.0,0.00019899,2]
[349461571,1737193850777,-500.0,0.00019899,2]
[349461572,1737193850787,-500.0,0.00019899,2]
[349461573,1737193850796,-500.0,0.00019899,2]
[349461574,1737193850806,-500.0,0.00019899,2]
[349461575,1737193850815,-500.0,0.00019899,2]
[349461576,1737193850826,-500.0,0.00019899,2]
[349461577,1737193850835,-500.0,0.00019899,2]
[349461578,1737193850845,-500.0,0.00019899,2]
[349461579,1737193850855,-500.0,0.00019899,2]
[349461580,1737193850864,-500.0,0.00019899,2]
[349461581,1737193850874,-500.0,0.00019899,2]
[349461582,1737193850883,-500.0,0.00019899,2]
[349461583,1737193850893,-500.0,0.00019899,2]
[349461584,1737193850903,-599.2399964,0.00019899,2]
[349461585,1737193850913,-500.0,0.00019899,2]
[349461586,1737193850924,-500.0,0.00019899,2]
[349461587,1737193850934,-549.01675016,0.00019899,2]
[349461588,1737193850944,-500.0,0.00019899,2]
[349461589,1737193850953,-500.0,0.00019899,2]
[349461590,1737193850963,-159.08,0.00019899,2]
[349461591,1737193850973,-161.99948018,0.00019899,2]
[349461592,1737193850984,-476.24142779,0.00019899,2]
[349461593,1737193850994,-500.0,0.00019899,2]
[349461594,1737193851003,-427.36,0.00019899,2]
[349461595,1737193851014,-500.0,0.00019899,2]
[349461596,1737193851023,-500.0,0.00019899,2]
[349461597,1737193851034,-500.0,0.00019899,2]
[349461598,1737193851044,-500.0,0.00019899,2]
[349461599,1737193851055,-500.0,0.00019899,2]
[349461600,1737193851064,-500.0,0.00019899,2]
[349461601,1737193851075,-633.21462715,0.00019899,2]
[349461602,1737193851085,-500.0,0.00019899,2]
[349461603,1737193851095,-500.0,0.00019899,2]
[349461604,1737193851105,-500.0,0.00019899,2]
[349461605,1737193851115,-500.11282453,0.00019899,2]
[349461606,1737193851124,-460.8,0.00019899,2]
[349461607,1737193851134,-152.9,0.00019899,2]
[349461608,1737193851143,-500.0,0.00019899,2]
[349461609,1737193851153,-500.0,0.00019899,2]
[349461610,1737193851162,-500.0,0.00019899,2]
[349461611,1737193851172,-500.0,0.00019899,2]
[349461612,1737193851182,-506.86,0.00019899,2]
[349461613,1737193851192,-500.0,0.00019899,2]
[349461614,1737193851202,-500.0,0.00019899,2]
[349461615,1737193851212,-500.0,0.00019899,2]
[349461616,1737193851221,-500.0,0.00019899,2]
[349461617,1737193851231,-500.0,0.00019899,2]
[349461618,1737193851240,-500.0,0.00019899,2]
[349461619,1737193851249,-500.0,0.00019899,2]
[349461620,1737193851258,-576.36514556,0.00019899,2]
[349461621,1737193851268,-500.0,0.00019899,2]
[349461622,1737193851277,-500.0,0.00019899,2]
[349461623,1737193851286,-500.0,0.00019899,2]
[349461624,1737193851295,-500.0,0.00019899,2]
[349461625,1737193851304,-500.0,0.00019899,2]
[349461626,1737193851314,-500.0,0.00019899,2]
[349461627,1737193851324,-500.0,0.00019899,2]
[349461628,1737193851334,-500.0,0.00019899,2]
[349461629,1737193851343,-500.0,0.00019899,2]
[349461630,1737193851353,-500.0,0.00019899,2]
[349461631,1737193851362,-500.0,0.00019899,2]
[349461632,1737193851372,-616.44811546,0.00019899,2]
[349461633,1737193851381,-500.0,0.00019899,2]
[349461634,1737193851392,-500.0,0.00019899,2]
[349461635,1737193851401,-500.0,0.00019899,2]
[349461636,1737193851411,-500.0,0.00019899,2]
[349461637,1737193851420,-500.0,0.00019899,2]
[349461638,1737193851430,-364.32,0.00019899,2]
[349461639,1737193851439,-500.0,0.00019899,2]
[349461640,1737193851448,-500.0,0.00019899,2]
[349461641,1737193851458,-500.0,0.00019899,2]
[349461642,1737193851467,-227.00929242,0.00019899,2]
[349461643,1737193851476,-1000.0,0.00019899,2]
[349461644,1737193851486,-1000.0,0.00019899,2]
[349461645,1737193851495,-315.7,0.00019899,2]
[349461646,1737193851505,-500.0,0.00019899,2]
[349461647,1737193851515,-500.0,0.00019899,2]
[349461648,1737193851524,-500.0,0.00019899,2]
[349461649,1737193851534,-500.0,0.00019899,2]
[349461650,1737193851543,-500.0,0.00019899,2]
[349461651,1737193851553,-415.2,0.00019899,2]
[349461652,1737193851563,-500.0,0.00019899,2]
[349461653,1737193851573,-500.0,0.00019899,2]
[349461654,1737193851582,-500.0,0.00019899,2]
[349461655,1737193851592,-500.0,0.00019899,2]
[349461656,1737193851602,-248.66541277,0.00019899,2]
[349461657,1737193851611,-500.0,0.00019899,2]
[349461658,1737193851621,-500.0,0.00019899,2]
[349461659,1737193851631,-154.8,0.00019899,2]
[349461660,1737193851641,-500.0,0.00019899,2]
[349461661,1737193851651,-388.02,0.00019899,2]
[349461662,1737193851661,-1285.21,0.00019899,2]
[349461663,1737193851670,-1285.21,0.00019899,2]
[349461664,1737193851680,-1285.21,0.00019899,2]
[349461665,1737193851689,-1285.21,0.00019899,2]
[349461666,1737193851699,-1285.21,0.00019899,2]
[349461667,1737193851709,-1285.21,0.00019899,2]
[349461668,1737193851718,-1285.21,0.00019899,2]
[349461669,1737193851728,-1285.21,0.00019899,2]
[349461670,1737193851737,-1285.21,0.00019899,2]
[349461671,1737193851747,-1285.21,0.00019899,2]
[349461672,1737193851756,-1285.21,0.00019899,2]
[349461673,1737193851766,-1285.21,0.00019899,2]
[349461674,1737193851775,-1285.21,0.00019899,2]
[349461675,1737193851785,-1285.29228429,0.00019899,2]
[349461676,1737193851795,-600.8,0.00019899,2]
[349461677,1737193851805,-516.15,0.00019899,2]
[349461678,1737193851815,-208.9,0.00019899,2]
[349461679,1737193851826,-500.0,0.00019899,2]
[349461680,1737193851836,-500.0,0.00019899,2]
[349461681,1737193851845,-500.0,0.00019899,2]
[349461682,1737193851855,-500.0,0.00019899,2]
[349461683,1737193851865,-500.0,0.00019899,2]
[349461684,1737193851875,-333.3,0.00019899,2]
[349461685,1737193851884,-254.80066115,0.00019899,2]
[349461686,1737193851894,-500.0,0.00019899,2]
[349461687,1737193851904,-500.0,0.00019899,2]
[349461688,1737193851914,-500.0,0.00019899,2]
[349461689,1737193851924,-500.0,0.00019899,2]
[349461690,1737193851934,-500.0,0.00019899,2]
[349461691,1737193851944,-500.0,0.00019899,2]
[349461692,1737193851954,-500.0,0.00019899,2]
[349461693,1737193851967,-150.80032862,0.00019899,2]
[349461694,1737193851979,-584.44,0.00019899,2]
[349461695,1737193851988,-584.44,0.00019899,2]
[349461696,1737193851997,-584.44,0.00019899,2]
[349461697,1737193852006,-584.44,0.00019899,2]
[349461698,1737193852016,-584.44,0.00019899,2]
[349461699,1737193852025,-584.44,0.00019899,2]
[349461700,1737193852034,-584.44,0.00019899,2]
[349461701,1737193852044,-584.44,0.00019899,2]
[349461702,1737193852055,-584.44,0.00019899,2]
[349461703,1737193852064,-584.44,0.00019899,2]
[349461704,1737193852073,-584.44,0.00019899,2]
[349461705,1737193852083,-584.44,0.00019899,2]
[349461706,1737193852092,-584.44,0.00019899,2]
[349461707,1737193852101,-584.4825764,0.00019899,2]
[349461708,1737193852110,-545.51,0.00019899,2]
[349461709,1737193852119,-500.0,0.00019899,2]
[349461710,1737193852129,-500.0,0.00019899,2]
[349461711,1737193852139,-500.0,0.00019899,2]
[349461712,1737193852148,-500.0,0.00019899,2]
[349461713,1737193852157,-500.0,0.00019899,2]
[349461714,1737193852167,-500.0,0.00019899,2]
[349461715,1737193852177,-500.0,0.00019899,2]
[349461716,1737193852186,-500.0,0.00019899,2]
[349461717,1737193852194,-500.0,0.00019899,2]
[349461718,1737193852204,-529.28020563,0.00019899,2]
[349461719,1737193852213,-425.48,0.00019899,2]
[349461720,1737193852223,-624.51,0.00019899,2]
[349461721,1737193852233,-624.51,0.00019899,2]
[349461722,1737193852242,-624.51,0.00019899,2]
[349461723,1737193852251,-624.51,0.00019899,2]
[349461724,1737193852261,-624.51,0.00019899,2]
[349461725,1737193852270,-624.51,0.00019899,2]
[349461726,1737193852280,-624.51,0.00019899,2]
[349461727,1737193852290,-624.51,0.00019899,2]
[349461728,1737193852299,-624.51,0.00019899,2]
[349461729,1737193852309,-624.51,0.00019899,2]
[349461730,1737193852319,-624.51,0.00019899,2]
[349461731,1737193852328,-624.51,0.00019899,2]
[349461732,1737193852338,-624.51,0.00019899,2]
[349461733,1737193852347,-624.63730683,0.00019899,2]
[349461734,1737193852356,-500.0,0.00019899,2]
[349461735,1737193852366,-500.0,0.00019899,2]
[349461736,1737193852375,-500.0,0.00019899,2]
[349461737,1737193852385,-500.0,0.00019899,2]
[349461738,1737193852394,-500.0,0.00019899,2]
[349461739,1737193852403,-593.83,0.00019899,2]
[349461740,1737193852414,-500.0,0.00019899,2]
[349461741,1737193852423,-500.0,0.00019899,2]
[349461742,1737193852433,-500.0,0.00019899,2]
[349461743,1737193852443,-500.0,0.00019899,2]
[349461744,1737193852453,-500.0,0.00019899,2]
[349461745,1737193852462,-500.0,0.00019899,2]
[349461746,1737193852472,-500.0,0.00019899,2]
[349461747,1737193852482,-500.0,0.00019899,2]
[349461748,1737193852492,-500.0,0.00019899,2]
[349461749,1737193852502,-500.0,0.00019899,2]
[349461750,1737193852511,-500.0,0.00019899,2]
[349461751,1737193852521,-474.99897033,0.00019899,2]
[349461752,1737193852530,-500.0,0.00019899,2]
[349461753,1737193852539,-500.0,0.00019899,2]
[349461754,1737193852549,-500.0,0.00019899,2]
[349461755,1737193852559,-500.0,0.00019899,2]
[349461756,1737193852568,-500.0,0.00019899,2]
[349461757,1737193852578,-485.76,0.00019899,2]
[349461758,1737193852588,-500.0,0.00019899,2]
[349461759,1737193852600,-500.0,0.00019899,2]
[349461760,1737193852611,-500.0,0.00019899,2]
[349461761,1737193852622,-500.0,0.00019899,2]
[349461762,1737193852633,-500.0,0.00019899,2]
[349461763,1737193852643,-238.3,0.00019899,2]
[349461764,1737193852652,-569.19,0.00019899,2]
[349461765,1737193852663,-569.19,0.00019899,2]
[349461766,1737193852672,-569.19,0.00019899,2]
[349461767,1737193852682,-569.19,0.00019899,2]
[349461768,1737193852692,-569.19,0.00019899,2]
[349461769,1737193852702,-569.19,0.00019899,2]
[349461770,1737193852712,-569.19,0.00019899,2]
[349461771,1737193852721,-3893.31710514,0.000199,2]
[349461772,1737193852730,-699941.66209708,0.000199,5]
[349461773,1737193852987,-500.0,0.00019495,2]
[349461774,1737193852997,-49.73316218,0.00019495,2]
[349461775,1737193853009,-258.44284185,0.00019495,2]
[349461776,1737193853120,-191.82399597,0.00019495,2]
[349461777,1737193853130,-500.0,0.00019495,2]
[349461778,1737193853140,-500.0,0.00019495,2]
[349461779,1737193853150,-500.0,0.00019495,2]
[349461780,1737193853160,-500.0,0.00019495,2]
[349461781,1737193853170,-500.0,0.00019897,2]
[349461782,1737193853179,-327.31,0.00019898,2]
[349461783,1737193853189,-218.770423,0.00019898,2]
[349461784,1737193853199,-569.19,0.00019899,2]
[349461785,1737193853209,-569.19,0.00019899,2]
[349461786,1737193853219,-569.19,0.00019899,2]
[349461787,1737193853229,-569.19,0.00019899,2]
[349461788,1737193853238,-569.19,0.00019899,2]
[349461789,1737193853249,-569.19,0.00019899,2]
[349461790,1737193853261,-569.25125227,0.00019899,2]
[349461791,1737193853271,-4113.20432876,0.000199,5]
[349461792,1737193853284,-9082.65656659,0.000199,5]
[349461793,1737193853296,-701.98778846,0.000199,5]
[349461794,1737193853591,-500.0,0.00019495,2]
[349461795,1737193853602,-315.48437617,0.00019495,2]
[349461796,1737193853672,-122.05986473,0.00019495,2]
[349461797,1737193853684,-62.4557591,0.00019495,2]
[349461798,1737193853694,-500.0,0.00019496,2]
[349461799,1737193853704,-500.0,0.00019496,2]
[349461800,1737193853714,-500.0,0.00019496,2]
[349461801,1737193853723,-398.10424089,0.00019496,2]
[349461803,1737193957937,153.74,0.00010137,2]
[349461805,1737194208248,-153.74,0.00016813,2]
[349461809,1737194754141,-210.33131605,0.0001832,2]
[349461810,1737194754166,-1768.82313197,0.00018399,2]
[349461811,1737194809967,709.06,0.0001653,2]
[349461812,1737194834129,-856.44461101,0.00018399,2]
[349461814,1737194841087,-226.74225702,0.00018399,2]
[349461815,1737194841108,-1807.81,0.0001842,2]
[349461816,1737194841129,-174.0,0.00018522,2]
[349461817,1737194841150,-350.23487698,0.00018656,2]
[349461819,1737194847093,-1536.88358624,0.00018656,2]
[349461820,1737194851096,-1659.80480328,0.00018656,2]
[349461822,1737194880106,161.84,0.00010137,2]
[349461831,1737194991762,-10403.0891,0.00018556,2]
[349461832,1737194991785,-352.63,0.00018608,2]
[349461833,1737194991807,-250.0,0.00018617,2]
[349461834,1737194991837,-299.7,0.00018622,2]
[349461835,1737194991863,-1000.0,0.00018657,2]
[349461836,1737194991887,-5528.36,0.0001867,2]
[349461837,1737194991910,-7166.2209,0.00018678,2]
[349461838,1737194993568,-7457.62329244,0.00018678,2]
[349461839,1737194993592,-250.0,0.00018678,2]
[349461840,1737194993617,-250.0,0.00018699,2]
[349461841,1737194993641,-709.06,0.00018794,2]
[349461842,1737194993674,-391.4641028,0.00019,12]
[349461843,1737194993701,-167.08,0.00019166,2]
[349461844,1737194993726,-527.597,0.00019395,2]
[349461845,1737194993749,-541.8541,0.00019395,2]
[349461846,1737194993773,-500.0,0.00019396,2]
[349461847,1737194993803,-9873.9846,0.00019396,2]
[349461848,1737194993826,-1000.0,0.00019396,2]
[349461849,1737194993853,-172.2,0.00019429,2]
[349461850,1737194993876,-500.7215936,0.00019473,2]
[349461851,1737194993900,-500.0,0.00019495,2]
[349461852,1737194993924,-500.0,0.00019495,2]
[349461853,1737194993947,-263.74717252,0.00019495,2]
[349461854,1737194993970,-866.99,0.00019496,2]
[349461855,1737194993992,-527.67813864,0.00019496,2]
[349461856,1737194995600,-339.31186136,0.00019496,2]
[349461857,1737194995623,-866.99,0.00019496,2]
[349461858,1737194995647,-866.99,0.00019496,2]
[349461859,1737194995671,-500.0,0.00019496,2]
[349461860,1737194995695,-500.0,0.00019496,2]
[349461861,1737194995719,-500.0,0.00019496,2]
[349461862,1737194995741,-500.0,0.00019496,2]
[349461863,1737194995764,-500.0,0.00019496,2]
[349461864,1737194995789,-500.0,0.00019496,2]
[349461865,1737194995812,-500.0,0.00019496,2]
[349461866,1737194995834,-500.0,0.00019496,2]
[349461867,1737194995856,-161.99948018,0.00019496,2]
[349461868,1737194995879,-476.24142779,0.00019496,2]
[349461869,1737194995903,-566.26836622,0.00019496,2]
[349461870,1737194995925,-500.0,0.00019496,2]
[349461871,1737194995948,-571.19804155,0.00019496,2]
[349461872,1737194995971,-500.0,0.00019496,2]
[349461873,1737194995994,-500.0,0.00019496,2]
[349461874,1737194996017,-500.11282453,0.00019496,2]
[349461875,1737194996044,-500.0,0.00019496,2]
[349461876,1737194996066,-500.0,0.00019496,2]
[349461877,1737194996088,-500.0,0.00019496,2]
[349461878,1737194996111,-500.0,0.00019496,2]
[349461879,1737194996134,-500.0,0.00019496,2]
[349461880,1737194996156,-500.0,0.00019496,2]
[349461881,1737194996179,-500.0,0.00019496,2]
[349461882,1737194996201,-576.36514556,0.00019496,2]
[349461883,1737194996224,-175.1526307,0.00019502,2]
[349461884,1737194996246,-352.63,0.00019538,2]
[349461885,1737194996268,-351.24600547,0.00019568,2]
[349461886,1737194996293,-900.0,0.00019568,2]
[349461887,1737194996320,-500.0,0.00019568,2]
[349461888,1737194996341,-507.10206884,0.00019594,2]
[349461889,1737194996363,-329.09227694,0.00019594,2]
[349461890,1737194996387,-500.0,0.00019594,2]
[349461891,1737194996409,-500.0,0.00019594,2]
[349461892,1737194996430,-500.0,0.00019594,2]
[349461893,1737194996452,-500.0,0.00019594,2]
[349461894,1737194996474,-500.0,0.00019594,2]
[349461895,1737194996497,-502.10543995,0.00019594,2]
[349461896,1737194996517,-504.97834358,0.00019594,2]
[349461897,1737194996544,-504.7549408,0.00019594,2]
[349461898,1737194996566,-243.35847382,0.00019594,2]
[349461899,1737194996587,-309.3697562,0.00019594,2]
[349461900,1737194996608,-500.0,0.00019594,2]
[349461901,1737194996630,-500.0,0.00019594,2]
[349461902,1737194996653,-457.23252527,0.00019594,2]
[349461903,1737194996676,-500.0,0.00019594,2]
[349461904,1737194996698,-501.91860542,0.00019594,2]
[349461905,1737194996720,-500.0,0.00019594,2]
[349461906,1737194996742,-435.58178582,0.00019594,2]
[349461907,1737194998142,-64.41821418,0.00019594,2]
[349461908,1737194998164,-504.24523241,0.00019594,2]
[349461909,1737194998186,-500.0,0.00019594,2]
[349461910,1737194998208,-501.58650791,0.00019594,2]
[349461911,1737194998231,-500.0,0.00019594,2]
[349461912,1737194998253,-627.97138521,0.00019594,2]
[349461913,1737194998275,-500.0,0.00019594,2]
[349461914,1737194998299,-500.0,0.00019594,2]
[349461915,1737194998326,-500.0,0.00019594,2]
[349461916,1737194998348,-500.0,0.00019594,2]
[349461917,1737194998373,-500.0,0.00019594,2]
[349461918,1737194998396,-500.0,0.00019594,2]
[349461919,1737194998419,-641.95,0.00019594,2]
[349461920,1737194998441,-500.0,0.00019594,2]
[349461921,1737194998463,-500.0,0.00019594,2]
[349461922,1737194998483,-500.0,0.00019594,2]
[349461923,1737194998505,-500.0,0.00019594,2]
[349461924,1737194998526,-509.24393948,0.00019594,2]
[349461925,1737194998550,-500.0,0.00019594,2]
[349461926,1737194998572,-500.0,0.00019594,2]
[349461927,1737194998599,-500.0,0.00019594,2]
[349461928,1737194998623,-1000.0,0.00019594,2]
[349461929,1737194998645,-1353.8,0.00019594,2]
[349461930,1737194998668,-640.41,0.00019594,2]
[349461931,1737194998692,-576.8,0.00019594,2]
[349461932,1737194998716,-500.0,0.00019594,2]
[349461933,1737194998739,-500.0,0.00019594,2]
[349461934,1737194998761,-500.0,0.00019594,2]
[349461935,1737194998783,-500.0,0.00019594,2]
[349461936,1737194998808,-500.0,0.00019594,2]
[349461937,1737194998831,-645.04071043,0.00019594,2]
[349461938,1737194998853,-500.0,0.00019594,2]
[349461939,1737194998877,-155.67112409,0.00019594,2]
[349461940,1737194998900,-502.20713706,0.00019594,2]
[349461941,1737194998922,-501.0041657,0.00019594,2]
[349461942,1737194998944,-500.0,0.00019594,2]
[349461943,1737194998965,-584.03358456,0.00019594,2]
[349461944,1737194998988,-500.0,0.00019594,2]
[349461945,1737194999011,-500.0,0.00019595,2]
[349461946,1737194999034,-504.67565356,0.00019595,2]
[349461947,1737194999058,-501.95077463,0.00019595,2]
[349461948,1737194999080,-202.2583796,0.00019595,2]
[349461949,1737194999102,-505.60453528,0.00019595,2]
[349461950,1737194999125,-504.9591522,0.00019595,2]
[349461951,1737194999148,-334.01453175,0.00019595,2]
[349461952,1737194999171,-500.0,0.00019595,2]
[349461953,1737194999192,-500.0,0.00019595,2]
[349461954,1737194999213,-633.78268569,0.00019595,2]
[349461955,1737194999237,-4.37228626,0.00019595,2]
[349461956,1737195000089,-346.6275974,0.00019595,2]
[349461957,1737195000113,-866.99,0.00019595,2]
[349461958,1737195000135,-500.0,0.00019595,2]
[349461959,1737195000157,-500.0,0.00019595,2]
[349461960,1737195000181,-575.864,0.00019595,2]
[349461961,1737195000203,-575.864,0.00019595,2]
[349461962,1737195000226,-575.864,0.00019595,2]
[349461963,1737195000250,-575.864,0.00019595,2]
[349461964,1737195000273,-575.864,0.00019595,2]
[349461965,1737195000300,-575.864,0.00019595,2]
[349461966,1737195000325,-575.864,0.00019595,2]
[349461967,1737195000349,-575.864,0.00019595,2]
[349461968,1737195000373,-575.864,0.00019595,2]
[349461969,1737195000396,-575.864,0.00019595,2]
[349461970,1737195000419,-500.0,0.00019598,2]
[349461971,1737195000442,-503.53417343,0.00019598,2]
[349461972,1737195000465,-866.99,0.00019598,2]
[349461973,1737195000489,-549.01675016,0.00019598,2]
[349461974,1737195000511,-500.0,0.00019598,2]
[349461975,1737195000533,-267.77097304,0.000196,7]
[349461976,1737195000558,-5000.0,0.00019608,2]
[349461977,1737195000580,-4032.0242,0.00019608,2]
[349461978,1737195000603,-159.67966882,0.00019608,2]
[349461979,1737195000626,-159.67966877,0.0001964,2]
[349461980,1737195000649,-159.67966877,0.00019672,2]
[349461981,1737195000674,-4329.36729961,0.00019699,2]
[349461982,1737195003274,-183.68475271,0.00019396,2]
[349461983,1737195003300,-300.0,0.00019593,2]
[349461984,1737195003326,-5426.40420039,0.00019699,2]
[349461985,1737195003352,-3000.0,0.000197,2]
[349461986,1737195003377,-159.67966877,0.00019704,2]
[349461987,1737195003403,-500.0,0.00019707,2]
[349461988,1737195003429,-500.0,0.00019707,2]
[349461989,1737195003454,-500.0,0.00019707,2]
[349461990,1737195003478,-451.09213064,0.00019707,2]
[349461991,1737195003503,-500.0,0.00019707,2]
[349461992,1737195003527,-500.0,0.00019707,2]
[349461993,1737195003554,-500.0,0.00019707,2]
[349461994,1737195003579,-500.0,0.00019707,2]
[349461995,1737195003603,-500.0,0.00019707,2]
[349461996,1737195003628,-500.0,0.00019707,2]
[349461997,1737195003652,-500.0,0.00019707,2]
[349461998,1737195003681,-500.0,0.00019708,2]
[349461999,1737195003706,-574.37718809,0.00019708,2]
[349462000,1737195003730,-500.0,0.00019708,2]
[349462001,1737195003754,-500.0,0.00019708,2]
[349462002,1737195003779,-500.0,0.00019708,2]
[349462003,1737195003803,-1358.9,0.00019708,2]
[349462004,1737195003828,-500.0,0.00019708,2]
[349462005,1737195003854,-500.0,0.00019708,2]
[349462006,1737195003879,-500.0,0.00019708,2]
[349462007,1737195003903,-500.0,0.00019708,2]
[349462008,1737195003929,-500.0,0.00019708,2]
[349462009,1737195003953,-266.53,0.00019708,2]
[349462010,1737195003977,-500.0,0.00019708,2]
[349462011,1737195004003,-538.92101976,0.00019708,2]
[349462012,1737195004026,-500.0,0.00019708,2]
[349462013,1737195004056,-500.0,0.00019708,2]
[349462014,1737195004080,-500.0,0.00019708,2]
[349462015,1737195004105,-500.0,0.00019708,2]
[349462016,1737195004130,-500.0,0.00019708,2]
[349462017,1737195004155,-240.41103964,0.00019708,2]
[349462018,1737195009107,-183.68475271,0.00019495,2]
[349462019,1737195009132,-521.63,0.00019707,2]
[349462020,1737195009155,-259.58896036,0.00019708,2]
[349462021,1737195009178,-500.0,0.00019708,2]
[349462022,1737195009200,-500.0,0.00019708,2]
[349462023,1737195009223,-500.0,0.00019708,2]
[349462024,1737195009246,-500.0,0.00019708,2]
[349462025,1737195009268,-526.60192519,0.00019708,2]
[349462026,1737195009289,-500.0,0.00019708,2]
[349462027,1737195009314,-500.0,0.00019708,2]
[349462028,1737195009336,-500.0,0.00019708,2]
[349462029,1737195009359,-500.0,0.00019708,2]
[349462030,1737195009382,-500.0,0.00019708,2]
[349462031,1737195009409,-506.95369606,0.00019708,2]
[349462032,1737195009432,-534.48921041,0.00019708,2]
[349462033,1737195009455,-500.0,0.00019708,2]
[349462034,1737195009478,-500.0,0.00019708,2]
[349462035,1737195009501,-500.0,0.00019708,2]
[349462036,1737195009522,-500.0,0.00019708,2]
[349462037,1737195009543,-500.0,0.00019708,2]
[349462038,1737195009568,-500.0,0.00019708,2]
[349462039,1737195009591,-500.0,0.00019708,2]
[349462040,1737195009615,-500.0,0.00019708,2]